bitfinex-derivatives/quotes_BTCF0:USTF0_20210404
["timestamp","ask_amount","ask_price","bid_price","bid_amount"]
[1617495793720,0.10725655,56989.0,56988.0,0.4706059]
[1617495794121,0.36826993,57000.0,56988.0,0.4706059]
[1617495794122,0.10725655,56995.0,56988.0,0.4706059]
[1617495794323,0.10725655,56995.0,56988.0,0.53232023]
[1617495794725,0.10725655,56995.0,56989.0,0.06171499]
[1617495795526,0.10725655,56995.0,56988.0,0.3588959]
[1617495796128,0.10725655,56989.0,56987.0,0.35805484]
[1617495796526,0.10725655,56989.0,56986.0,0.41952958]
[1617495796928,0.10725655,56989.0,56987.0,0.35775864]
[1617495797327,0.10725655,56989.0,56987.0,0.06171343]
[1617495797928,0.10725655,56989.0,56987.0,0.35799547]
[1617495798927,0.10725655,56989.0,56986.0,0.06171374]
[1617495798928,0.10725655,56989.0,56988.0,0.35852518]
[1617495799131,0.36826421,57000.0,56988.0,0.35852518]
[1617495799530,0.36827035,56999.0,56988.0,0.35852518]
[1617495799930,0.36827132,57000.0,56989.0,0.35905636]
[1617495800330,0.36849073,56998.0,56993.0,0.10725655]
[1617495801330,1.0,56997.0,56993.0,0.10725655]
[1617495801531,1.0,56994.0,56993.0,0.10725655]
[1617495802230,1.10725655,56994.0,56993.0,0.10725655]
[1617495802432,0.10725655,56994.0,56993.0,0.10725655]
[1617495803632,0.36833776,56999.0,56993.0,0.10725655]
[1617495803831,0.36833776,56999.0,56993.0,0.21343655]
[1617495804233,0.10725655,56995.0,56993.0,0.21343655]
[1617495809540,0.36833675,57001.0,56993.0,0.21343655]
[1617495809739,0.36833675,57001.0,56994.0,2.8121]
[1617495809941,0.36832203,57003.0,56994.0,2.8121]
[1617495810341,0.9859186,57014.0,57002.0,0.10725655]
[1617495810342,0.10725655,57004.0,57002.0,0.10725655]
[1617495813145,3.6351,57003.0,57002.0,0.10725655]
[1617495813746,4.00464951,57003.0,57002.0,0.46408783]
[1617495814547,4.00464951,57003.0,57002.0,0.52579256]
[1617495820656,3.6351,57003.0,57002.0,0.52579256]
[1617495821157,4.00463156,57003.0,57002.0,0.52579256]
[1617495821555,3.6351,57003.0,57002.0,0.52579256]
[1617495822055,4.00453952,57003.0,57002.0,0.52579256]
[1617495822656,3.6351,57003.0,57002.0,0.52579256]
[1617495823456,0.36942749,57007.0,57002.0,0.96047065]
[1617495823858,0.36942749,57007.0,57006.0,0.35551065]
[1617495824057,0.36942749,57007.0,57006.0,0.46025065]
[1617495824657,0.36941653,57010.0,57006.0,0.95597815]
[1617495825258,0.47418681,57013.0,57009.0,0.78832231]
[1617495825659,0.36940323,57015.0,57009.0,0.78832231]
[1617495825859,0.36940323,57015.0,57012.0,1.0]
[1617495826060,0.36940019,57016.0,57014.0,1.0]
[1617495826460,0.36940019,57016.0,57015.0,0.10725655]
[1617495826662,0.36939174,57017.0,57015.0,0.52359608]
[1617495827061,0.36938994,57018.0,57016.0,0.4162366]
[1617495827461,0.36938994,57018.0,57017.0,0.35459667]
[1617495828265,0.36938994,57018.0,57017.0,1.35459667]
[1617495828869,0.36938994,57018.0,57017.0,1.41628827]
[1617495829366,0.36937353,57020.0,57017.0,1.41628827]
[1617495829768,0.10474584,57036.0,57015.0,0.10725655]
[1617495829769,0.45143175,57023.0,57019.0,1.35449789]
[1617495829969,0.45143175,57023.0,57019.0,1.46690789]
[1617495830167,0.45143175,57023.0,57019.0,0.46690789]
[1617495830366,0.45143175,57023.0,57022.0,0.10725655]
[1617495830967,0.82080374,57023.0,57022.0,0.10725655]
[1617495831370,0.36937199,57023.0,57022.0,0.10725655]
[1617495831768,0.36937199,57023.0,57022.0,0.46158609]
[1617495831967,0.36937199,57023.0,57022.0,1.46158609]
[1617495832569,0.10469937,57039.0,57022.0,0.46158609]
[1617495832570,0.36933729,57024.0,57022.0,0.46158609]
[1617495832771,0.36933729,57024.0,57022.0,1.46158609]
[1617495832971,0.3679358,57032.0,57022.0,1.10725655]
[1617495833170,0.3679358,57032.0,57023.0,1.0]
[1617495833369,0.3679358,57032.0,57027.0,1.0]
[1617495833770,0.3679358,57032.0,57028.0,1.0]
[1617495834171,0.3679358,57032.0,57029.0,1.0]
[1617495834372,0.3679358,57032.0,57031.0,0.10725655]
[1617495834572,0.3679358,57032.0,57031.0,0.22179655]
[1617495835674,0.3679358,57032.0,57031.0,1.22179655]
[1617495836074,0.3679358,57032.0,57031.0,0.22179655]
[1617495836276,0.36770311,57035.0,57031.0,0.22179655]
[1617495836876,0.36770632,57033.0,57031.0,0.22179655]
[1617495837277,0.36770759,57034.0,57031.0,1.22179655]
[1617495837476,0.36770759,57034.0,57032.0,1.0]
[1617495837876,0.36770759,57034.0,57031.0,0.22179655]
[1617495838276,0.36769529,57035.0,57031.0,0.22179655]
[1617495838876,0.36769971,57034.0,57031.0,0.22179655]
[1617495839177,0.36768812,57035.0,57031.0,0.22179655]
[1617495839376,0.36768812,57035.0,57032.0,0.0525]
[1617495839579,0.3676857,57036.0,57032.0,0.0525]
[1617495840177,0.3676857,57036.0,57032.0,1.0525]
[1617495840379,0.3676857,57036.0,57032.0,1.0]
[1617495840981,0.3676857,57036.0,57033.0,1.0]
[1617495841381,0.3676857,57036.0,57031.0,0.22179655]
[1617495841582,0.3676857,57036.0,57031.0,1.22179655]
[1617495842381,0.3676857,57036.0,57031.0,0.22179655]
[1617495842584,0.36766614,57038.0,57031.0,1.22179655]
[1617495842983,0.36767517,57039.0,57031.0,0.22179655]
[1617495843383,0.36767517,57039.0,57031.0,1.22179655]
[1617495843583,0.36207517,57039.0,57031.0,0.92179655]
[1617495843783,0.31367517,57039.0,57030.0,1.0]
[1617495843985,0.30857517,57039.0,57030.0,1.0]
[1617495844184,0.30857517,57039.0,57028.0,3.5287]
[1617495844388,0.4576,57040.0,57033.0,1.0]
[1617495844585,0.4576,57040.0,57038.0,0.10725655]
[1617495846391,0.4576,57040.0,57038.0,0.25318655]
[1617495846995,0.4576,57040.0,57039.0,3.0107]
[1617495849795,0.4576,57040.0,57039.0,4.0107]
[1617495849995,0.4576,57040.0,57039.0,3.0107]
[1617495850795,0.4576,57040.0,57039.0,4.0107]
[1617495850996,0.44839502,57050.0,57039.0,4.0107]
[1617495851396,0.44839711,57049.0,57041.0,1.0]
[1617495851797,0.44839431,57050.0,57042.0,1.0]
[1617495852100,0.44839431,57050.0,57039.0,4.0107]
[1617495852299,0.10073667,57048.0,57039.0,4.0107]
[1617495852497,0.10073667,57048.0,57047.0,0.10725655]
[1617495852698,0.5491574,57051.0,57047.0,0.10725655]
[1617495853498,0.1007659,57051.0,57047.0,0.10725655]
[1617495853697,0.1007659,57051.0,57050.0,1.0]
[1617495853898,0.1007659,57051.0,57050.0,3.74511]
[1617495854100,0.1007659,57051.0,57050.0,2.74511]
[1617495854300,0.1007659,57051.0,57050.0,3.74511]
[1617495854499,0.2,57071.0,57050.0,3.74511]
[1617495854500,0.44783518,57057.0,57050.0,3.74511]
[1617495854701,0.44783518,57057.0,57056.0,0.10725655]
[1617495855099,0.44783292,57058.0,57056.0,0.10725655]
[1617495857406,0.10725655,57059.0,57056.0,0.10725655]
[1617495859015,0.10725655,57059.0,57056.0,0.27312655]
[1617495859429,0.44775531,57063.0,57056.0,1.77312655]
[1617495859629,0.44775531,57063.0,57057.0,1.5]
[1617495859826,0.4476821,57068.0,57058.0,1.2]
[1617495860008,0.4476821,57068.0,57059.0,1.5]
[1617495860209,0.50871579,57074.0,57062.0,1.0]
[1617495860410,0.44808134,57082.0,57067.0,1.0]
[1617495860609,0.44808134,57082.0,57074.0,0.10725655]
[1617495860810,0.10725655,57086.0,57074.0,1.26463655]
[1617495861811,0.10725655,57086.0,57075.0,1.0]
[1617495862214,0.10725655,57086.0,57074.0,0.26463655]
[1617495862412,0.10725655,57086.0,57080.0,2.9889]
[1617495862611,0.10725655,57086.0,57082.0,0.10725655]
[1617495862811,0.10725655,57086.0,57080.0,2.9889]
[1617495863013,0.2,57085.0,57080.0,2.9889]
[1617495864015,0.10725655,57086.0,57080.0,2.9889]
[1617495864215,0.2,57085.0,57080.0,2.9889]
[1617495864415,0.10725655,57086.0,57080.0,2.9889]
[1617495865017,0.509105,57088.0,57080.0,2.9889]
[1617495865217,0.50911675,57090.0,57080.0,2.9889]
[1617495865615,0.53519696,57097.0,57080.0,2.9889]
[1617495865616,0.50909303,57092.0,57080.0,2.9889]
[1617495866215,0.36152395,57097.0,57080.0,2.9889]
[1617495866615,0.36152395,57097.0,57094.0,0.10725655]
[1617495866814,0.36152395,57097.0,57094.0,0.25874655]
[1617495867116,0.36152395,57097.0,57094.0,0.25771932]
[1617495867517,0.2,57100.0,57094.0,0.25771932]
[1617495867716,1.5,57099.0,57094.0,0.25771932]
[1617495867916,1.0,57095.0,57056.0,0.4817]
[1617495868116,1.7,57094.0,57056.0,0.4817]
[1617495868319,2.8363,57083.0,57056.0,0.4817]
[1617495868519,1.0,57068.0,57041.0,1.5]
[1617495868719,1.11508,57068.0,57066.0,0.10725655]
[1617495868922,0.11508,57068.0,57066.0,0.10725655]
[1617495870123,0.36495766,57081.0,57067.0,3.4949]
[1617495870722,1.47218153,57084.0,57080.0,0.10725655]
[1617495871121,0.10725655,57084.0,57080.0,0.10725655]
[1617495872122,0.10725655,57084.0,57067.0,3.4949]
[1617495872322,1.0,57081.0,57067.0,3.4949]
[1617495872724,0.2,57080.0,57074.0,0.10725655]
[1617495873423,1.0,57081.0,57074.0,0.10725655]
[1617495873823,0.36522251,57083.0,57074.0,0.10725655]
[1617495874024,1.0,57075.0,57074.0,0.10725655]
[1617495874224,1.0,57076.0,57074.0,0.10725655]
[1617495874424,0.2,57075.0,57074.0,0.10725655]
[1617495874624,1.2,57075.0,57074.0,0.10725655]
[1617495874824,1.30725655,57075.0,57074.0,0.10725655]
[1617495875025,1.30725655,57075.0,57067.0,3.4949]
[1617495875426,1.10725655,57075.0,57067.0,3.4949]
[1617495875626,0.10725655,57075.0,57067.0,3.4949]
[1617495876829,1.0,57080.0,57071.0,0.10725655]
[1617495877231,0.56511147,57081.0,57071.0,0.10725655]
[1617495877430,0.36511147,57081.0,57071.0,0.10725655]
[1617495877630,1.0,57081.0,57071.0,0.10725655]
[1617495877832,1.36511363,57082.0,57071.0,0.10725655]
[1617495878832,1.36511363,57082.0,57080.0,0.10725655]
[1617495879432,0.36511363,57082.0,57080.0,0.10725655]
[1617495880234,0.36509365,57084.0,57080.0,0.10725655]
[1617495880633,0.36571115,57094.0,57080.0,0.10725655]
[1617495880634,0.36507879,57085.0,57080.0,0.10725655]
[1617495881035,0.10725655,57089.0,57080.0,0.10725655]
[1617495882036,1.0,57086.0,57080.0,0.10725655]
[1617495882235,1.10598,57086.0,57080.0,0.10725655]
[1617495882435,1.47193244,57086.0,57080.0,0.10725655]
[1617495882635,0.47193244,57086.0,57080.0,0.10725655]
[1617495882837,0.10725655,57081.0,57080.0,0.10725655]
[1617495884039,0.10725655,57081.0,57057.0,0.28889246]
[1617495884240,2.81885655,57081.0,57057.0,0.28889246]
[1617495884439,1.5,57080.0,57057.0,0.28889246]
[1617495884639,1.5,57080.0,57052.0,3.4416]
[1617495884640,1.0,57068.0,57053.0,0.28911433]
[1617495884839,1.0,57066.0,57065.0,0.10725655]
[1617495885038,1.0,57067.0,57065.0,0.10725655]
[1617495885239,0.1188,57068.0,57065.0,0.10725655]
[1617495885440,0.1188,57068.0,57067.0,3.3933]
[1617495885840,1.0,57078.0,57065.0,0.10725655]
[1617495886441,2.00829405,57090.0,57065.0,0.10725655]
[1617495886442,1.0,57079.0,57065.0,0.10725655]
[1617495886641,0.36598271,57082.0,57065.0,0.10725655]
[1617495886843,0.36598114,57083.0,57081.0,0.10725655]
[1617495887245,0.36597764,57084.0,57081.0,0.10725655]
[1617495888245,1.0,57083.0,57081.0,0.10725655]
[1617495888645,1.0,57083.0,57061.0,3.3943]
[1617495888646,1.0,57082.0,57061.0,3.3943]
[1617495888846,1.0,57082.0,57072.0,0.10725655]
[1617495889246,1.0,57078.0,57072.0,0.10725655]
[1617495889445,1.0,57077.0,57072.0,0.10725655]
[1617495889846,1.0,57074.0,57072.0,0.10725655]
[1617495890046,1.0,57073.0,57061.0,3.3943]
[1617495890247,0.2,57072.0,57052.0,0.28932165]
[1617495890447,3.2233,57066.0,57050.0,0.28973141]
[1617495890647,0.2,57065.0,57050.0,0.28973141]
[1617495890852,0.2,57065.0,57051.0,0.10725655]
[1617495892250,3.36203,57066.0,57051.0,0.10725655]
[1617495892251,1.0,57060.0,57051.0,0.10725655]
[1617495892449,4.36203,57066.0,57051.0,0.10725655]
[1617495892652,1.0,57064.0,57051.0,0.10725655]
[1617495892851,1.0,57065.0,57063.0,0.10725655]
[1617495894051,1.0,57065.0,57047.0,0.2910112]
[1617495894554,1.0,57065.0,57044.0,0.29137512]
[1617495894753,1.0,57065.0,57056.0,0.10725655]
[1617495895153,3.36203,57066.0,57056.0,0.10725655]
[1617495896756,3.36203,57066.0,57064.0,0.10725655]
[1617495898160,3.2233,57066.0,57064.0,0.10725655]
[1617495898860,0.10725655,57065.0,57064.0,0.10725655]
[1617495901261,1.10725655,57065.0,57064.0,0.10725655]
[1617495903965,0.4748406,57065.0,57064.0,0.10725655]
[1617495904364,1.4748406,57065.0,57064.0,0.10725655]
[1617495905064,3.1748406,57065.0,57049.0,0.29210509]
[1617495905465,3.1748406,57065.0,57048.0,0.29217021]
[1617495905865,0.36759196,57061.0,57047.0,0.2922469]
[1617495906065,0.2,57060.0,57047.0,0.2922469]
[1617495906267,0.2,57060.0,57046.0,0.29239067]
[1617495906268,0.36760019,57059.0,57046.0,0.29239067]
[1617495906464,3.5664,57047.0,57046.0,0.29239067]
[1617495906666,3.68078,57047.0,57045.0,0.29276313]
[1617495906865,0.10725655,57046.0,57045.0,0.29276313]
[1617495907067,1.60725655,57046.0,57042.0,0.35131575]
[1617495907266,1.60725655,57046.0,57027.0,0.06165569]
[1617495907267,1.80725655,57046.0,57032.0,0.35203441]
[1617495907465,2.80725655,57046.0,57032.0,0.35203441]
[1617495907666,3.143,57028.0,57026.0,0.35241958]
[1617495907867,3.30686,57028.0,57026.0,0.35241958]
[1617495908267,3.30686,57028.0,56993.0,0.91347008]
[1617495908268,3.30686,57028.0,57025.0,0.3524859]
[1617495908467,0.16386,57028.0,57025.0,0.3524859]
[1617495908667,0.16386,57028.0,57015.0,0.48956375]
[1617495908668,0.16386,57028.0,57027.0,0.3522654]
[1617495908869,0.36767957,57043.0,57027.0,0.45952195]
[1617495909068,0.36764427,57048.0,57027.0,0.88951168]
[1617495909469,2.76945655,57052.0,57038.0,0.35133213]
[1617495909669,0.10725655,57052.0,57039.0,3.5541]
[1617495909868,0.10725655,57052.0,57041.0,1.0]
[1617495910069,0.10725655,57052.0,57045.0,1.0]
[1617495910267,0.36759735,57058.0,57045.0,1.0]
[1617495910470,0.36757634,57066.0,57050.0,0.35053763]
[1617495910669,0.36757634,57066.0,57050.0,0.45651763]
[1617495910869,0.36757634,57066.0,57063.0,0.10725655]
[1617495911269,5.56637563,57076.0,57048.0,0.35066195]
[1617495911270,1.0,57064.0,57048.0,0.35066195]
[1617495911870,1.36760154,57060.0,57043.0,0.35102536]
[1617495912070,1.56760154,57060.0,57043.0,0.35102536]
[1617495912270,1.0,57057.0,57043.0,0.35102536]
[1617495912471,1.0,57057.0,57039.0,0.42903099]
[1617495912472,1.0,57044.0,57038.0,0.35141058]
[1617495912672,1.14409,57044.0,57038.0,0.35141058]
[1617495912871,1.14409,57044.0,57040.0,0.10725655]
[1617495913272,1.0,57042.0,57040.0,0.10725655]
[1617495913772,1.0,57042.0,57034.0,0.35168683]
[1617495913974,1.0,57042.0,57032.0,0.35157357]
[1617495914373,0.14409,57044.0,57032.0,0.35157357]
[1617495914774,1.0,57034.0,57031.0,0.35222763]
[1617495914973,0.10725655,57032.0,57031.0,0.45948418]
[1617495915172,0.25172655,57032.0,57031.0,0.10725655]
[1617495915573,0.25172655,57032.0,57031.0,0.52100924]
[1617495916376,0.10725655,57032.0,57031.0,0.52100924]
[1617495916790,0.36791756,57047.0,57031.0,0.52100924]
[1617495916977,0.36790316,57049.0,57046.0,0.10725655]
[1617495917176,0.36790316,57049.0,57046.0,0.22891655]
[1617495917575,1.0,57051.0,57046.0,0.22891655]
[1617495917775,0.47514541,57053.0,57046.0,0.22891655]
[1617495917977,0.10725655,57053.0,57046.0,0.22891655]
[1617495918777,0.36786887,57055.0,57046.0,0.22891655]
[1617495918978,0.36784632,57059.0,57054.0,0.10725655]
[1617495919378,0.10725655,57060.0,57054.0,0.10725655]
[1617495920577,1.10725655,57060.0,57054.0,0.10725655]
[1617495920980,0.47511734,57060.0,57054.0,0.10725655]
[1617495921381,0.10725655,57060.0,57054.0,0.10725655]
[1617495922183,0.47511954,57060.0,57054.0,0.10725655]
[1617495923183,0.36786365,57059.0,57054.0,0.10725655]
[1617495923883,0.59112676,57060.0,57054.0,0.10725655]
[1617495924285,0.10725655,57060.0,57054.0,0.10725655]
[1617495924484,0.36785261,57061.0,57054.0,0.10725655]
[1617495924693,0.36783156,57064.0,57054.0,0.10725655]
[1617495925082,0.36783156,57064.0,57063.0,0.10725655]
[1617495925283,0.10725655,57068.0,57063.0,0.26090655]
[1617495925284,0.36803712,57066.0,57063.0,0.26090655]
[1617495925684,0.10725655,57068.0,57063.0,0.26090655]
[1617495925685,0.47528932,57068.0,57063.0,0.26090655]
[1617495926788,0.36803277,57068.0,57063.0,0.26090655]
[1617495926987,0.36807447,57069.0,57063.0,0.26090655]
[1617495927188,0.36807447,57069.0,57067.0,1.0]
[1617495927389,0.36806259,57074.0,57068.0,1.0]
[1617495927788,0.36806259,57074.0,57069.0,1.0]
[1617495928189,0.36802514,57078.0,57069.0,1.06163283]
[1617495928590,0.36802293,57080.0,57069.0,1.41282484]
[1617495928791,0.36802293,57080.0,57071.0,1.0]
[1617495928993,0.36802293,57080.0,57079.0,0.10725655]
[1617495929192,0.36802293,57080.0,57079.0,0.26525655]
[1617495929993,0.36802711,57081.0,57079.0,0.26525655]
[1617495930792,0.51110401,57091.0,57079.0,0.26525655]
[1617495930793,0.36801914,57082.0,57079.0,0.26525655]
[1617495930992,0.36801914,57082.0,57079.0,3.71575655]
[1617495932195,0.368028,57081.0,57079.0,3.71575655]
[1617495932594,0.368028,57081.0,57079.0,0.26525655]
[1617495932794,0.368028,57081.0,57079.0,0.10725655]
[1617495932996,0.44978929,57086.0,57079.0,0.10725655]
[1617495932997,0.47527904,57080.0,57079.0,0.10725655]
[1617495933297,0.59238194,57080.0,57079.0,0.10725655]
[1617495934297,0.10725655,57080.0,57079.0,0.10725655]
[1617495935899,0.47527328,57080.0,57079.0,0.10725655]
[1617495937101,0.10725655,57080.0,57079.0,0.10725655]
[1617495938401,0.10725655,57080.0,57079.0,0.23685655]
[1617495939902,3.1689,57082.0,57079.0,0.23685655]
[1617495940907,0.36745782,57086.0,57079.0,0.23685655]
[1617495941104,0.36745782,57086.0,57085.0,0.10725655]
[1617495943207,0.10725655,57086.0,57085.0,0.10725655]
[1617495948316,0.36743096,57088.0,57085.0,0.10725655]
[1617495948718,0.36715056,57090.0,57085.0,0.10725655]
[1617495949119,0.4741562,57091.0,57085.0,0.10725655]
[1617495953921,1.9741562,57091.0,57085.0,0.10725655]
[1617495954121,3.7856,57086.0,57085.0,0.10725655]
[1617495954321,3.9497,57086.0,57085.0,0.10725655]
[1617495954520,2.9497,57086.0,57085.0,0.10725655]
[1617495954720,4.43736125,57086.0,57085.0,0.10725655]
[1617495954920,5.93736125,57086.0,57061.0,0.35211706]
[1617495955123,5.93736125,57086.0,57062.0,0.45929348]
[1617495955521,1.0,57064.0,57062.0,0.10725655]
[1617495955720,1.15394,57064.0,57062.0,0.10725655]
[1617495955921,0.15394,57064.0,57062.0,0.10725655]
[1617495956920,2.76714,57064.0,57062.0,0.10725655]
[1617495957120,0.10725655,57063.0,57062.0,0.10725655]
[1617495963535,0.25272655,57063.0,57062.0,0.10725655]
[1617495970052,0.25272655,57063.0,57057.0,0.35376188]
[1617495970248,2.75272655,57063.0,57057.0,0.35376188]
[1617495970450,2.75272655,57063.0,57027.0,3.5778]
[1617495970451,1.0,57058.0,57056.0,0.35397005]
[1617495970852,0.2,57057.0,57056.0,0.35397005]
[1617495971050,1.2,57057.0,57045.0,0.3547757]
[1617495971248,0.10725655,57046.0,57045.0,0.3547757]
[1617495971450,0.22189655,57046.0,57043.0,0.35491587]
[1617495971849,0.22189655,57046.0,57039.0,0.35524752]
[1617495972250,1.0,57045.0,57039.0,0.35524752]
[1617495972451,1.0,57044.0,57039.0,0.35524752]
[1617495972750,1.0,57042.0,57039.0,0.35524752]
[1617495973152,1.0,57040.0,57039.0,0.35524752]
[1617495973350,1.0,57040.0,57029.0,0.60065589]
[1617495973351,1.10725655,57040.0,57038.0,0.35554939]
[1617495973751,1.10725655,57040.0,57039.0,0.35669054]
[1617495974150,1.10725655,57040.0,57039.0,0.41834824]
[1617495974151,0.10725655,57040.0,57039.0,0.41834824]
[1617495974750,1.10725655,57040.0,57039.0,0.35669054]
[1617495974951,2.60725655,57040.0,57039.0,0.35669054]
[1617495975552,2.60725655,57040.0,57036.0,0.35690689]
[1617495976353,1.0,57037.0,57033.0,0.43599033]
[1617495976551,3.0835,57035.0,57033.0,0.43599033]
[1617495976953,1.0,57034.0,57033.0,0.43599033]
[1617495977153,3.78687,57034.0,57033.0,0.43599033]
[1617495977354,3.89412655,57034.0,57033.0,0.43599033]
[1617495977662,3.89412655,57034.0,57033.0,0.35682859]
[1617495978154,3.89412655,57034.0,57033.0,0.41848908]
[1617495978553,3.89412655,57034.0,57033.0,0.35682859]
[1617495978955,3.89412655,57034.0,57030.0,0.06166068]
[1617495979355,2.89412655,57034.0,57029.0,0.46289177]
[1617495979554,1.0,57031.0,57029.0,0.46289177]
[1617495979955,1.0,57030.0,57029.0,0.46289177]
[1617495980156,1.0,57030.0,57029.0,0.10725655]
[1617495980755,1.0,57030.0,57029.0,0.46297208]
[1617495980957,1.0,57032.0,57029.0,0.46297208]
[1617495981355,2.72465655,57034.0,57029.0,0.46297208]
[1617495981356,1.0,57033.0,57029.0,0.46297208]
[1617495981554,2.72465655,57034.0,57029.0,0.46297208]
[1617495981555,1.0,57032.0,57029.0,0.46297208]
[1617495981757,1.1356,57032.0,57031.0,0.35565793]
[1617495982156,1.1356,57032.0,57030.0,0.06166158]
[1617495982355,0.1356,57032.0,57030.0,0.06166158]
[1617495982556,0.1356,57032.0,57031.0,0.41715604]
[1617495982756,1.0,57033.0,57031.0,0.41715604]
[1617495982957,1.0,57033.0,57031.0,0.06166021]
[1617495983358,2.72465655,57034.0,57030.0,0.35515808]
[1617495983561,1.0,57033.0,57030.0,0.35515808]
[1617495983760,1.11121,57033.0,57030.0,0.35515808]
[1617495985163,1.11121,57033.0,57029.0,0.10725655]
[1617495988168,0.11121,57033.0,57029.0,0.10725655]
[1617495988770,0.11121,57033.0,57029.0,0.46022004]
[1617495988969,0.10725655,57034.0,57029.0,0.46022004]
[1617495989169,0.10725655,57034.0,57029.0,0.10725655]
[1617495995376,1.10725655,57034.0,57029.0,0.10725655]
[1617495996380,1.27803655,57034.0,57029.0,0.10725655]
[1617495997177,0.27803655,57034.0,57029.0,0.10725655]
[1617495997378,1.0,57030.0,57029.0,0.10725655]
[1617495998587,2.8186,57032.0,57029.0,0.10725655]
[1617496000980,1.0,57043.0,57029.0,0.10725655]
[1617496001180,1.0,57049.0,57030.0,0.35323019]
[1617496001379,4.2389,57055.0,57030.0,0.35323019]
[1617496001582,0.36664225,57056.0,57054.0,0.10725655]
[1617496001781,0.36664225,57056.0,57054.0,0.21177655]
[1617496001980,0.82290831,57062.0,57054.0,0.21177655]
[1617496002380,0.4563,57062.0,57054.0,0.21177655]
[1617496002580,0.4563,57062.0,57057.0,2.7578]
[1617496003580,0.4563,57062.0,57061.0,0.10725655]
[1617496005582,0.56355655,57062.0,57061.0,0.10725655]
[1617496006482,3.43945655,57062.0,57061.0,0.10725655]
[1617496006686,0.56355655,57062.0,57061.0,0.10725655]
[1617496007483,0.56355655,57062.0,57061.0,3.85655655]
[1617496013087,0.10725655,57062.0,57061.0,5.35655655]
[1617496013287,0.36727967,57072.0,57061.0,6.35655655]
[1617496013488,0.36727967,57072.0,57071.0,0.10725655]
[1617496013689,0.36724448,57079.0,57071.0,0.26860655]
[1617496014088,0.10725655,57080.0,57071.0,0.26860655]
[1617496015091,0.00725655,57080.0,57071.0,0.26860655]
[1617496015492,0.00725655,57080.0,57079.0,0.10725655]
[1617496020295,0.36717632,57088.0,57079.0,0.10725655]
[1617496021595,0.36717632,57088.0,57087.0,0.10725655]
[1617496021797,0.36717632,57088.0,57087.0,0.27546655]
[1617496023097,0.36656415,57091.0,57087.0,0.27546655]
[1617496023498,0.36657142,57092.0,57087.0,0.27546655]
[1617496023899,0.47382505,57093.0,57087.0,0.27546655]
[1617496024298,0.36657175,57092.0,57087.0,0.27546655]
[1617496024498,0.36657175,57092.0,57091.0,2.5258]
[1617496024700,0.10725655,57093.0,57091.0,2.5258]
[1617496025498,0.47382694,57093.0,57091.0,2.5258]
[1617496026902,0.10725655,57093.0,57091.0,2.5258]
[1617496027901,1.5,57092.0,57087.0,0.27546655]
[1617496028103,2.9843,57088.0,57072.0,0.35173728]
[1617496028303,1.5,57087.0,57072.0,0.35173728]
[1617496028705,1.5,57087.0,57058.0,0.35244631]
[1617496028706,1.0,57073.0,57058.0,0.35244631]
[1617496028904,4.10512,57073.0,57058.0,0.35244631]
[1617496029104,1.0,57065.0,57058.0,0.35244631]
[1617496029305,1.0,57065.0,57052.0,0.35270431]
[1617496029704,1.0,57065.0,57057.0,0.10725655]
[1617496030506,1.0,57066.0,57057.0,0.10725655]
[1617496030706,1.0,57067.0,57057.0,0.10725655]
[1617496031507,3.10512,57073.0,57057.0,0.10725655]
[1617496031708,0.10725655,57058.0,57057.0,0.10725655]
[1617496032108,0.22232655,57058.0,57057.0,0.10725655]
[1617496032511,1.22232655,57058.0,57057.0,0.10725655]
[1617496032709,0.22232655,57058.0,57057.0,0.10725655]
[1617496033911,1.0,57066.0,57057.0,0.10725655]
[1617496034111,0.36646968,57075.0,57065.0,3.5228]
[1617496034312,0.36644295,57079.0,57065.0,3.5228]
[1617496034712,0.36642907,57086.0,57065.0,3.5228]
[1617496035712,0.10725655,57086.0,57085.0,0.10725655]
[1617496035911,0.10725655,57086.0,57085.0,0.24597655]
[1617496036711,0.10725655,57086.0,57085.0,0.13872]
[1617496036910,1.10725655,57086.0,57066.0,0.29356064]
[1617496037111,1.10725655,57086.0,57065.0,3.5228]
[1617496037513,0.10725655,57086.0,57065.0,3.5228]
[1617496037715,0.10725655,57078.0,57063.0,0.29380915]
[1617496037914,0.10725655,57078.0,57065.0,0.29374681]
[1617496037915,2.8234,57075.0,57065.0,0.29374681]
[1617496039715,2.8234,57075.0,57074.0,0.10725655]
[1617496042315,0.10725655,57082.0,57074.0,0.10725655]
[1617496042717,0.10725655,57082.0,57079.0,3.602]
[1617496042918,1.10725655,57082.0,57079.0,3.602]
[1617496043619,0.10725655,57082.0,57079.0,3.602]
[1617496043819,0.10725655,57082.0,57081.0,0.10725655]
[1617496044219,0.10725655,57082.0,57069.0,0.16588]
[1617496044220,1.60725655,57082.0,57067.0,0.29376726]
[1617496044420,0.053,57081.0,57059.0,0.35282372]
[1617496044818,1.0,57060.0,57059.0,0.35282372]
[1617496045019,3.0365,57056.0,57036.0,0.43243098]
[1617496045220,0.2,57055.0,57036.0,0.43243098]
[1617496045421,1.7,57055.0,57028.0,0.4328682]
[1617496045619,1.0,57037.0,57028.0,0.4328682]
[1617496045821,1.16704,57037.0,57029.0,0.10725655]
[1617496046021,2.667,57030.0,57029.0,0.10725655]
[1617496046222,2.667,57030.0,57025.0,0.43317953]
[1617496046421,3.867,57030.0,57025.0,0.43317953]
[1617496046622,3.867,57030.0,56998.0,1.0]
[1617496046623,3.867,57030.0,57018.0,0.43386998]
[1617496046823,1.0,57026.0,57018.0,0.43386998]
[1617496047024,1.0,57026.0,57014.0,0.43409703]
[1617496047423,1.0,57020.0,57014.0,0.43409703]
[1617496047623,1.0,57020.0,57012.0,0.43404147]
[1617496047624,1.0,57017.0,57012.0,0.43404147]
[1617496047823,0.10725655,57013.0,57012.0,0.54129802]
[1617496048027,0.10725655,57013.0,57012.0,0.10725655]
[1617496049725,0.10725655,57013.0,57012.0,0.5419217]
[1617496050324,0.10622882,57013.0,57012.0,0.5419217]
[1617496050525,0.1281,57020.0,57012.0,0.5419217]
[1617496050726,1.0,57034.0,57012.0,0.5419217]
[1617496050925,1.0,57040.0,57013.0,1.5]
[1617496051326,1.0,57044.0,57019.0,0.43394006]
[1617496051525,2.9329,57046.0,57019.0,1.55550006]
[1617496051726,2.9329,57046.0,57019.0,0.55550006]
[1617496051926,1.0,57049.0,57045.0,0.10725655]
[1617496052127,0.36627108,57056.0,57045.0,0.24040655]
[1617496052327,0.36624887,57057.0,57045.0,0.24040655]